fUST/lending_fUST_20250516
["ID","MTS","AMOUNT","RATE_DAILY","PERIOD"]
[361213091,1747345842826,-793.0,0.00013835,2]
[361213092,1747345842835,-468.9,0.00013835,2]
[361213093,1747345842845,-6731.02,0.00013835,2]
[361213094,1747345842854,-2578.75,0.00013835,2]
[361213095,1747345842863,-450.0,0.00013835,2]
[361213096,1747345842873,-1043.02,0.00013835,2]
[361213097,1747345842882,-1126.04,0.00013835,2]
[361213098,1747345842891,-450.0,0.00013835,2]
[361213099,1747345842901,-450.0,0.00013835,2]
[361213100,1747345842909,-450.0,0.00013835,2]
[361213101,1747345842918,-450.0,0.00013835,2]
[361213102,1747345842927,-450.0,0.00013835,2]
[361213103,1747345842936,-707.9,0.00013835,2]
[361213104,1747345842946,-450.0,0.00013835,2]
[361213105,1747345842954,-450.0,0.00013835,2]
[361213106,1747345842963,-450.0,0.00013835,2]
[361213107,1747345842972,-450.0,0.00013835,2]
[361213108,1747345842981,-1155.45,0.00013835,2]
[361213109,1747345842990,-450.0,0.00013835,2]
[361213110,1747345842999,-7685.63,0.00013835,2]
[361213112,1747345843090,-450.0,0.00013835,2]
[361213113,1747345843099,-450.0,0.00013835,2]
[361213115,1747345843108,-1214.44,0.00013835,2]
[361213116,1747345843117,-450.0,0.00013835,2]
[361213117,1747345843126,-450.0,0.00013835,2]
[361213118,1747345843135,-450.0,0.00013835,2]
[361213119,1747345843144,-450.0,0.00013835,2]
[361213120,1747345843154,-450.0,0.00013835,2]
[361213121,1747345843163,-450.0,0.00013835,2]
[361213122,1747345843172,-450.0,0.00013835,2]
[361213123,1747345843182,-450.0,0.00013835,2]
[361213124,1747345843191,-450.0,0.00013835,2]
[361213125,1747345843200,-450.0,0.00013835,2]
[361213127,1747345843209,-450.0,0.00013835,2]
[361213128,1747345843218,-411.6489391,0.00013835,2]
[361213129,1747345843228,-450.0,0.00013835,2]
[361213130,1747345843237,-1252.42,0.00013835,2]
[361213131,1747345843246,-450.0,0.00013835,2]
[361213132,1747345843256,-450.0,0.00013835,2]
[361213133,1747345843264,-450.0,0.00013835,2]
[361213134,1747345843273,-450.0,0.00013835,2]
[361213135,1747345843283,-524.93,0.00013835,2]
[361213136,1747345843292,-450.0,0.00013835,2]
[361213137,1747345843302,-450.0,0.00013835,2]
[361213138,1747345843311,-1189.31,0.00013835,2]
[361213139,1747345843321,-450.0,0.00013835,2]
[361213140,1747345843331,-450.0,0.00013835,2]
[361213141,1747345843340,-450.0,0.00013835,2]
[361213142,1747345843350,-450.0,0.00013835,2]
[361213143,1747345843359,-3263.58,0.00013835,2]
[361213144,1747345843368,-450.0,0.00013835,2]
[361213145,1747345843378,-450.0,0.00013835,2]
[361213146,1747345843388,-813.21,0.00013835,2]
[361213147,1747345843397,-450.0,0.00013835,2]
[361213149,1747345843407,-1500.06,0.00013835,2]
[361213150,1747345843416,-450.0,0.00013835,2]
[361213151,1747345843426,-2082.2,0.00013835,2]
[361213152,1747345843436,-450.0,0.00013835,2]
[361213153,1747345843447,-450.0,0.00013835,2]
[361213154,1747345843458,-195.1171395,0.00013835,2]
[361213155,1747345843468,-751.13,0.00013835,2]
[361213157,1747345843478,-450.0,0.00013835,2]
[361213159,1747345843488,-3752.07,0.00013835,2]
[361213160,1747345843498,-305.63189709,0.00013835,2]
[361213161,1747345843509,-450.0,0.00013835,2]
[361213162,1747345843518,-450.0,0.00013835,2]
[361213163,1747345843528,-559.53170102,0.00013835,2]
[361213165,1747345843538,-450.0,0.00013835,2]
[361213167,1747345843547,-826.94,0.00013835,2]
[361213168,1747345843560,-688.59,0.00013835,2]
[361213170,1747345843570,-452.72,0.00013835,2]
[361213171,1747345843580,-450.55,0.00013835,2]
[361213172,1747345843589,-450.0,0.00013835,2]
[361213173,1747345843599,-450.0,0.00013835,2]
[361213174,1747345843609,-450.0,0.00013835,2]
[361213175,1747345843618,-450.0,0.00013835,2]
[361213176,1747345843635,-450.0,0.00013835,2]
[361213177,1747345843646,-1402.25,0.00013835,2]
[361213178,1747345843656,-450.0,0.00013835,2]
[361213179,1747345843666,-4383.19,0.00013835,2]
[361213180,1747345843675,-450.0,0.00013835,2]
[361213181,1747345843685,-1875.32,0.00013835,2]
[361213182,1747345843694,-524.05,0.00013835,2]
[361213183,1747345843704,-1374.86,0.00013835,2]
[361213184,1747345843714,-926.75,0.00013835,2]
[361213185,1747345843724,-888.03,0.00013835,2]
[361213186,1747345843734,-450.0,0.00013835,2]
[361213187,1747345843744,-1393.53,0.00013835,2]
[361213188,1747345843754,-450.0,0.00013835,2]
[361213189,1747345843763,-450.0,0.00013835,2]
[361213190,1747345843772,-450.0,0.00013835,2]
[361213191,1747345843782,-450.0,0.00013835,2]
[361213192,1747345843792,-1298.47,0.00013835,2]
[361213193,1747345843801,-3274.41,0.00013835,2]
[361213194,1747345843811,-450.0,0.00013835,2]
[361213195,1747345843821,-537.42,0.00013835,2]
[361213196,1747345843830,-2671.53,0.00013835,2]
[361213197,1747345843839,-151.0,0.00013835,2]
[361213198,1747345843848,-151.0,0.00013835,2]
[361213199,1747345843857,-156.636998,0.00013835,2]
[361213200,1747345843867,-156.636998,0.00013835,2]
[361213202,1747345843877,-151.0,0.00013835,2]
[361213203,1747345843886,-156.636998,0.00013835,2]
[361213204,1747345843895,-156.636998,0.00013835,2]
[361213205,1747345843904,-156.636998,0.00013835,2]
[361213206,1747345843914,-156.636998,0.00013835,2]
[361213207,1747345843923,-466.02,0.00013835,2]
[361213208,1747345843932,-450.0,0.00013835,2]
[361213209,1747345843941,-160.0,0.00013854,2]
[361213210,1747345843950,-151.0,0.00013857,2]
[361213211,1747345843959,-12629.50215115,0.00013857,2]
[361213212,1747345843969,-160.0,0.00013857,2]
[361213213,1747345843979,-160.0,0.00013857,2]
[361213214,1747345843988,-314.33516537,0.00013857,2]
[361213215,1747345843998,-212.23495278,0.00013857,2]
[361213216,1747345844007,-422.32131761,0.00013857,2]
[361213217,1747345844016,-160.0,0.00013857,2]
[361213218,1747345844027,-312.19434165,0.00013873,2]
[361213219,1747345844036,-500.0,0.00013873,2]
[361213220,1747345844045,-500.55492575,0.00013873,2]
[361213221,1747345844055,-500.0,0.00013873,2]
[361213222,1747345844064,-500.0,0.00013873,2]
[361213223,1747345844074,-500.0,0.00013873,2]
[361213224,1747345844084,-151.0,0.00013879,2]
[361213225,1747345844093,-242.183006,0.00013879,2]
[361213226,1747345844103,-151.0,0.000139,2]
[361213227,1747345844112,-151.0,0.000139,2]
[361213228,1747345844122,-151.0,0.000139,2]
[361213229,1747345844131,-322.1351761,0.000139,2]
[361213230,1747345844140,-157.9828156,0.000139,2]
[361213231,1747345844153,-153.0,0.000139,2]
[361213232,1747345844162,-175.798278,0.000139,2]
[361213233,1747345844172,-153.0,0.000139,2]
[361213234,1747345844181,-569.3570429,0.000139,2]
[361213235,1747345844190,-363.1834287,0.000139,2]
[361213236,1747345844200,-151.0,0.00013972,2]
[361213237,1747345844209,-151.0,0.00013972,2]
[361213238,1747345844218,-407.7,0.00013972,2]
[361213239,1747345844228,-151.0,0.00013972,2]
[361213240,1747345844237,-450.0,0.00013972,2]
[361213241,1747345844247,-450.0,0.00013972,2]
[361213242,1747345844256,-450.0,0.00013972,2]
[361213243,1747345844265,-450.0,0.00013972,2]
[361213244,1747345844275,-450.0,0.00013972,2]
[361213245,1747345844284,-339.545952,0.00013972,2]
[361213246,1747345844293,-339.545952,0.00013972,2]
[361213247,1747345844303,-450.0,0.00013972,2]
[361213248,1747345844313,-339.545952,0.00013972,2]
[361213249,1747345844322,-339.545952,0.00013972,2]
[361213250,1747345844332,-350.0,0.00013972,2]
[361213251,1747345844341,-450.0,0.00013972,2]
[361213252,1747345844350,-450.0,0.00013972,2]
[361213253,1747345844360,-450.0,0.00013972,2]
[361213254,1747345844370,-450.0,0.00013972,2]
[361213255,1747345844379,-450.0,0.00013972,2]
[361213257,1747345844388,-450.0,0.00013972,2]
[361213259,1747345844398,-450.0,0.00013972,2]
[361213260,1747345844407,-450.0,0.00013972,2]
[361213261,1747345844416,-598.84,0.00013972,2]
[361213262,1747345844425,-450.0,0.00013972,2]
[361213263,1747345844435,-450.0,0.00013972,2]
[361213264,1747345844444,-450.0,0.00013972,2]
[361213265,1747345844454,-450.0,0.00013972,2]
[361213266,1747345844542,-450.0,0.00013972,2]
[361213267,1747345844557,-491.12,0.00013972,2]
[361213268,1747345844567,-450.0,0.00013972,2]
[361213269,1747345844577,-450.0,0.00013972,2]
[361213270,1747345844587,-200.0,0.00013972,2]
[361213271,1747345844597,-151.0,0.00013972,2]
[361213272,1747345844607,-450.0,0.00013972,2]
[361213273,1747345844616,-450.0,0.00013972,2]
[361213274,1747345844628,-450.0,0.00013972,2]
[361213275,1747345844638,-450.0,0.00013972,2]
[361213276,1747345844647,-392.924744,0.00013972,2]
[361213277,1747345844657,-151.0,0.00013972,2]
[361213278,1747345844666,-392.924744,0.00013972,2]
[361213279,1747345844676,-450.0,0.00013972,2]
[361213280,1747345844686,-207.755127,0.00013972,2]
[361213281,1747345844696,-392.924744,0.00013972,2]
[361213282,1747345844706,-450.0,0.00013972,2]
[361213283,1747345844716,-392.924744,0.00013972,2]
[361213284,1747345844725,-450.0,0.00013972,2]
[361213285,1747345844735,-151.0,0.00013972,2]
[361213286,1747345844744,-450.0,0.00013972,2]
[361213287,1747345844754,-151.0,0.00013972,2]
[361213288,1747345844764,-450.0,0.00013972,2]
[361213289,1747345844774,-610.49,0.00013972,2]
[361213290,1747345844783,-450.0,0.00013972,2]
[361213291,1747345844793,-151.0,0.00013972,2]
[361213292,1747345844803,-450.0,0.00013972,2]
[361213293,1747345844812,-998.34,0.00013972,2]
[361213294,1747345844822,-558.03,0.00013972,2]
[361213295,1747345844831,-550.0,0.00013972,2]
[361213296,1747345844840,-450.0,0.00013972,2]
[361213297,1747345844850,-450.0,0.00013972,2]
[361213298,1747345844859,-450.0,0.00013972,2]
[361213299,1747345844869,-450.0,0.00013972,2]
[361213300,1747345844878,-487.75104682,0.00013972,2]
[361213301,1747345844887,-450.0,0.00013972,2]
[361213302,1747345844895,-450.0,0.00013972,2]
[361213303,1747345844905,-450.0,0.00013972,2]
[361213304,1747345844914,-450.0,0.00013972,2]
[361213305,1747345844923,-450.0,0.00013972,2]
[361213306,1747345844932,-450.0,0.00013972,2]
[361213307,1747345844941,-460.67842696,0.00013972,2]
[361213308,1747345844950,-450.0,0.00013972,2]
[361213309,1747345844959,-450.0,0.00013972,2]
[361213310,1747345844969,-257.96879978,0.00013972,2]
[361213311,1747345844978,-151.0,0.00013972,2]
[361213312,1747345844987,-151.0,0.00013972,2]
[361213313,1747345844996,-450.0,0.00013972,2]
[361213314,1747345845006,-300.0,0.00013972,2]
[361213315,1747345845015,-450.0,0.00013972,2]
[361213316,1747345845025,-450.0,0.00013972,2]
[361213317,1747345845035,-450.0,0.00013972,2]
[361213318,1747345845044,-450.0,0.00013972,2]
[361213319,1747345845054,-450.0,0.00013972,2]
[361213320,1747345845063,-450.0,0.00013972,2]
[361213321,1747345845072,-150.0,0.00013972,2]
[361213322,1747345845083,-450.0,0.00013972,2]
[361213323,1747345845092,-450.0,0.00013972,2]
[361213324,1747345845101,-450.0,0.00013972,2]
[361213325,1747345845111,-450.0,0.00013972,2]
[361213326,1747345845120,-450.0,0.00013972,2]
[361213327,1747345845129,-450.0,0.00013972,2]
[361213328,1747345845139,-450.0,0.00013972,2]
[361213329,1747345845148,-152.63731051,0.00013972,2]
[361213330,1747345845157,-450.0,0.00013972,2]
[361213331,1747345845166,-450.0,0.00013972,2]
[361213332,1747345845175,-605.55,0.00013972,2]
[361213333,1747345845184,-450.0,0.00013972,2]
[361213334,1747345845193,-151.0,0.00013972,2]
[361213335,1747345845203,-151.0,0.00013972,2]
[361213336,1747345845212,-151.0,0.00013972,2]
[361213337,1747345845221,-450.0,0.00013972,2]
[361213338,1747345845231,-450.0,0.00013972,2]
[361213339,1747345845240,-450.0,0.00013972,2]
[361213340,1747345845249,-450.0,0.00013972,2]
[361213341,1747345845258,-450.0,0.00013972,2]
[361213342,1747345845268,-450.0,0.00013972,2]
[361213343,1747345845276,-151.0,0.00013972,2]
[361213344,1747345845285,-151.0,0.00013972,2]
[361213345,1747345845294,-673.65,0.00013972,2]
[361213346,1747345845303,-1525.72,0.00013972,2]
[361213347,1747345845312,-204.11628,0.00013972,2]
[361213348,1747345845322,-450.0,0.00013972,2]
[361213349,1747345845331,-204.11628,0.00013972,2]
[361213350,1747345845340,-204.11628,0.00013972,2]
[361213351,1747345845349,-910.98,0.00013972,2]
[361213352,1747345845359,-204.11628,0.00013972,2]
[361213353,1747345845368,-450.0,0.00013972,2]
[361213354,1747345845378,-450.0,0.00013972,2]
[361213355,1747345845387,-151.0,0.00013972,2]
[361213356,1747345845396,-857.58,0.00013972,2]
[361213357,1747345845406,-151.0,0.00013972,2]
[361213358,1747345845415,-450.0,0.00013972,2]
[361213359,1747345845425,-450.0,0.00013972,2]
[361213360,1747345845435,-450.0,0.00013972,2]
[361213361,1747345845444,-450.0,0.00013972,2]
[361213362,1747345845454,-1502.68,0.00013972,2]
[361213363,1747345845464,-450.0,0.00013972,2]
[361213364,1747345845474,-824.25,0.00013972,2]
[361213365,1747345845483,-607.75,0.00013972,2]
[361213366,1747345845492,-450.0,0.00013972,2]
[361213367,1747345845501,-336.19561167,0.00013972,2]
[361213368,1747345845511,-584.76023084,0.00013972,2]
[361213369,1747345845520,-450.0,0.00013972,2]
[361213370,1747345845530,-450.0,0.00013972,2]
[361213371,1747345845539,-450.0,0.00013972,2]
[361213372,1747345845549,-450.0,0.00013972,2]
[361213373,1747345845562,-450.0,0.00013972,2]
[361213374,1747345845572,-450.0,0.00013972,2]
[361213375,1747345845582,-450.0,0.00013972,2]
[361213376,1747345845591,-450.0,0.00013972,2]
[361213377,1747345845601,-1170.98,0.00013972,2]
[361213378,1747345845611,-450.0,0.00013972,2]
[361213379,1747345845620,-2062.05,0.00013972,2]
[361213380,1747345845629,-790.14,0.00013972,2]
[361213381,1747345845639,-450.0,0.00013972,2]
[361213382,1747345845648,-562.01,0.00013972,2]
[361213383,1747345845657,-151.0,0.00013972,2]
[361213384,1747345845667,-294.274334,0.00013972,2]
[361213385,1747345845678,-450.0,0.00013972,2]
[361213386,1747345845687,-598.641883,0.00013972,2]
[361213387,1747345845697,-598.641883,0.00013972,2]
[361213388,1747345845707,-450.0,0.00013972,2]
[361213389,1747345845717,-1553.85,0.00013972,2]
[361213390,1747345845727,-450.0,0.00013972,2]
[361213391,1747345845736,-598.641883,0.00013972,2]
[361213392,1747345845746,-598.641883,0.00013972,2]
[361213393,1747345845755,-849.19,0.00013972,2]
[361213394,1747345845765,-2995.5,0.00013972,2]
[361213395,1747345845775,-896.72,0.00013972,2]
[361213396,1747345845785,-450.0,0.00013972,2]
[361213397,1747345845794,-450.0,0.00013972,2]
[361213398,1747345845878,-450.0,0.00013972,2]
[361213399,1747345845888,-260.972937,0.00013972,2]
[361213400,1747345845899,-450.0,0.00013972,2]
[361213401,1747345845909,-260.972937,0.00013972,2]
[361213402,1747345845919,-450.0,0.00013972,2]
[361213403,1747345845929,-450.0,0.00013972,2]
[361213404,1747345845939,-260.972937,0.00013972,2]
[361213405,1747345845949,-260.972937,0.00013972,2]
[361213406,1747345845959,-450.0,0.00013972,2]
[361213407,1747345845968,-450.0,0.00013972,2]
[361213408,1747345845977,-450.0,0.00013972,2]
[361213409,1747345845986,-450.0,0.00013972,2]
[361213410,1747345845996,-450.0,0.00013972,2]
[361213411,1747345846006,-450.0,0.00013972,2]
[361213412,1747345846015,-450.0,0.00013972,2]
[361213413,1747345846025,-486.6,0.00013972,2]
[361213414,1747345846035,-450.0,0.00013972,2]
[361213415,1747345846045,-1877.03,0.00013972,2]
[361213416,1747345846055,-450.0,0.00013972,2]
[361213417,1747345846064,-814.76,0.00013972,2]
[361213418,1747345846074,-450.0,0.00013972,2]
[361213419,1747345846084,-803.17,0.00013972,2]
[361213420,1747345846093,-450.0,0.00013972,2]
[361213421,1747345846103,-450.0,0.00013972,2]
[361213422,1747345846112,-450.0,0.00013972,2]
[361213423,1747345846123,-1388.56,0.00013972,2]
[361213424,1747345846132,-883.81,0.00013972,2]
[361213425,1747345846142,-450.0,0.00013972,2]
[361213426,1747345846152,-450.0,0.00013972,2]
[361213427,1747345846162,-450.0,0.00013972,2]
[361213428,1747345846172,-450.0,0.00013972,2]
[361213429,1747345846181,-450.0,0.00013972,2]
[361213430,1747345846191,-450.0,0.00013972,2]
[361213431,1747345846201,-450.0,0.00013972,2]
[361213432,1747345846211,-450.0,0.00013972,2]
[361213433,1747345846220,-450.0,0.00013972,2]
[361213434,1747345846230,-450.0,0.00013972,2]
[361213436,1747345846240,-547.59,0.00013972,2]
[361213437,1747345846250,-450.0,0.00013972,2]
[361213438,1747345846259,-565.64,0.00013972,2]
[361213439,1747345846269,-450.0,0.00013972,2]
[361213440,1747345846279,-5115.38,0.00013972,2]
[361213441,1747345846289,-1176.348622,0.00013972,2]
[361213442,1747345846298,-566.76,0.00013972,2]
[361213443,1747345846308,-450.0,0.00013972,2]
[361213444,1747345846317,-1176.348622,0.00013972,2]
[361213445,1747345846327,-1209.34,0.00013972,2]
[361213446,1747345846336,-1096.12,0.00013972,2]
[361213447,1747345846346,-1176.348622,0.00013972,2]
[361213448,1747345846356,-1176.348622,0.00013972,2]
[361213449,1747345846365,-450.0,0.00013972,2]
[361213450,1747345846375,-1685.47,0.00013972,2]
[361213451,1747345846385,-450.0,0.00013972,2]
[361213452,1747345846394,-450.0,0.00013972,2]
[361213453,1747345846405,-980.48,0.00013972,2]
[361213454,1747345846414,-6092.27,0.00013972,2]
[361213455,1747345846424,-529.25,0.00013972,2]
[361213456,1747345846433,-1906.75,0.00013972,2]
[361213458,1747345846443,-1672.54,0.00013972,2]
[361213459,1747345846453,-1722.71,0.00013972,2]
[361213460,1747345846463,-450.0,0.00013972,2]
[361213461,1747345846472,-450.0,0.00013972,2]
[361213462,1747345846482,-9879.16,0.00013972,2]
[361213463,1747345846491,-1178.5,0.00013972,2]
[361213464,1747345846501,-573.51,0.00013972,2]
[361213465,1747345846511,-450.0,0.00013972,2]
[361213466,1747345846521,-2335.11,0.00013972,2]
[361213467,1747345846530,-450.0,0.00013972,2]
[361213468,1747345846541,-1568.42,0.00013972,2]
[361213469,1747345846554,-450.0,0.00013972,2]
[361213470,1747345846564,-6807.08,0.00013972,2]
[361213471,1747345846574,-450.0,0.00013972,2]
[361213472,1747345846583,-450.0,0.00013972,2]
[361213473,1747345846593,-450.0,0.00013972,2]
[361213474,1747345846603,-450.0,0.00013972,2]
[361213475,1747345846612,-1855.08,0.00013972,2]
[361213476,1747345846622,-1515.34,0.00013972,2]
[361213477,1747345846633,-450.0,0.00013972,2]
[361213478,1747345846643,-450.0,0.00013972,2]
[361213479,1747345846653,-450.0,0.00013972,2]
[361213480,1747345846663,-450.0,0.00013972,2]
[361213481,1747345846672,-450.0,0.00013972,2]
[361213482,1747345846682,-732.67,0.00013972,2]
[361213483,1747345846691,-2400.68,0.00013972,2]
[361213484,1747345846701,-450.0,0.00013972,2]
[361213485,1747345846710,-450.0,0.00013972,2]
[361213487,1747345846719,-450.0,0.00013972,2]
[361213488,1747345846728,-450.0,0.00013972,2]
[361213489,1747345846737,-450.0,0.00013972,2]
[361213490,1747345846748,-450.0,0.00013972,2]
[361213491,1747345846757,-1016.65,0.00013972,2]
[361213492,1747345846767,-956.78,0.00013972,2]
[361213493,1747345846777,-450.0,0.00013972,2]
[361213494,1747345846786,-486.71,0.00013972,2]
[361213495,1747345846796,-450.0,0.00013972,2]
[361213496,1747345846805,-450.0,0.00013972,2]
[361213497,1747345846815,-556.89,0.00013972,2]
[361213498,1747345846824,-450.0,0.00013972,2]
[361213499,1747345846833,-2093.21,0.00013972,2]
[361213500,1747345846843,-454.57,0.00013972,2]
[361213501,1747345846852,-1306.59,0.00013972,2]
[361213502,1747345846861,-450.0,0.00013972,2]
[361213503,1747345846871,-450.0,0.00013972,2]
[361213504,1747345846880,-450.0,0.00013972,2]
[361213505,1747345846889,-793.0,0.00013972,2]
[361213506,1747345846898,-468.9,0.00013972,2]
[361213507,1747345846908,-6731.02,0.00013972,2]
[361213508,1747345846917,-2578.75,0.00013972,2]
[361213509,1747345846926,-450.0,0.00013972,2]
[361213510,1747345846935,-1043.02,0.00013972,2]
[361213511,1747345846944,-1126.04,0.00013972,2]
[361213512,1747345846953,-450.0,0.00013972,2]
[361213513,1747345846962,-450.0,0.00013972,2]
[361213514,1747345846972,-450.0,0.00013972,2]
[361213515,1747345846981,-450.0,0.00013972,2]
[361213516,1747345846990,-450.0,0.00013972,2]
[361213517,1747345846999,-707.9,0.00013972,2]
[361213518,1747345847009,-450.0,0.00013972,2]
[361213519,1747345847018,-450.0,0.00013972,2]
[361213520,1747345847027,-450.0,0.00013972,2]
[361213521,1747345847036,-450.0,0.00013972,2]
[361213522,1747345847119,-1155.45,0.00013972,2]
[361213523,1747345847128,-450.0,0.00013972,2]
[361213524,1747345847138,-7685.63,0.00013972,2]
[361213525,1747345847147,-450.0,0.00013972,2]
[361213526,1747345847156,-450.0,0.00013972,2]
[361213527,1747345847165,-1214.44,0.00013972,2]
[361213528,1747345847175,-450.0,0.00013972,2]
[361213529,1747345847184,-450.0,0.00013972,2]
[361213530,1747345847193,-450.0,0.00013972,2]
[361213531,1747345847202,-450.0,0.00013972,2]
[361213532,1747345847212,-450.0,0.00013972,2]
[361213533,1747345847222,-450.0,0.00013972,2]
[361213534,1747345847231,-450.0,0.00013972,2]
[361213535,1747345847240,-450.0,0.00013972,2]
[361213536,1747345847250,-450.0,0.00013972,2]
[361213537,1747345847259,-450.0,0.00013972,2]
[361213538,1747345847268,-450.0,0.00013972,2]
[361213539,1747345847277,-450.0,0.00013972,2]
[361213540,1747345847287,-1252.42,0.00013972,2]
[361213541,1747345847296,-450.0,0.00013972,2]
[361213542,1747345847306,-450.0,0.00013972,2]
[361213543,1747345847315,-450.0,0.00013972,2]
[361213544,1747345847324,-450.0,0.00013972,2]
[361213545,1747345847334,-524.93,0.00013972,2]
[361213546,1747345847343,-450.0,0.00013972,2]
[361213547,1747345847353,-450.0,0.00013972,2]
[361213548,1747345847362,-1189.31,0.00013972,2]
[361213549,1747345847372,-450.0,0.00013972,2]
[361213550,1747345847381,-450.0,0.00013972,2]
[361213551,1747345847391,-450.0,0.00013972,2]
[361213552,1747345847401,-450.0,0.00013972,2]
[361213553,1747345847410,-3263.58,0.00013972,2]
[361213554,1747345847420,-450.0,0.00013972,2]
[361213555,1747345847429,-450.0,0.00013972,2]
[361213556,1747345847439,-813.21,0.00013972,2]
[361213557,1747345847448,-450.0,0.00013972,2]
[361213558,1747345847458,-1500.06,0.00013972,2]
[361213559,1747345847468,-450.0,0.00013972,2]
[361213560,1747345847477,-2082.2,0.00013972,2]
[361213561,1747345847487,-450.0,0.00013972,2]
[361213562,1747345847496,-450.0,0.00013972,2]
[361213563,1747345847506,-751.13,0.00013972,2]
[361213564,1747345847515,-450.0,0.00013972,2]
[361213565,1747345847524,-3752.07,0.00013972,2]
[361213566,1747345847534,-450.0,0.00013972,2]
[361213567,1747345847543,-450.0,0.00013972,2]
[361213568,1747345847556,-450.0,0.00013972,2]
[361213569,1747345847565,-826.94,0.00013972,2]
[361213570,1747345847575,-688.59,0.00013972,2]
[361213571,1747345847583,-452.72,0.00013972,2]
[361213572,1747345847592,-450.55,0.00013972,2]
[361213573,1747345847601,-443.08680792,0.00013972,2]
[361213574,1747345847611,-450.0,0.00013972,2]
[361213575,1747345847620,-450.0,0.00013972,2]
[361213576,1747345847630,-450.0,0.00013972,2]
[361213577,1747345847640,-450.0,0.00013972,2]
[361213578,1747345847663,-1402.25,0.00013972,2]
[361213579,1747345847679,-450.0,0.00013972,2]
[361213580,1747345847698,-4383.19,0.00013972,2]
[361213581,1747345847717,-450.0,0.00013972,2]
[361213582,1747345847738,-1875.32,0.00013972,2]
[361213583,1747345847754,-524.05,0.00013972,2]
[361213584,1747345847773,-1374.86,0.00013972,2]
[361213585,1747345847788,-926.75,0.00013972,2]
[361213586,1747345847804,-888.03,0.00013972,2]
[361213587,1747345847823,-450.0,0.00013972,2]
[361213588,1747345847842,-1393.53,0.00013972,2]
[361213589,1747345847855,-450.0,0.00013972,2]
[361213590,1747345847872,-450.0,0.00013972,2]
[361213591,1747345847886,-450.0,0.00013972,2]
[361213592,1747345847903,-450.0,0.00013972,2]
[361213593,1747345847916,-1298.47,0.00013972,2]
[361213594,1747345847931,-3274.41,0.00013972,2]
[361213595,1747345847945,-450.0,0.00013972,2]
[361213596,1747345847960,-537.42,0.00013972,2]
[361213597,1747345847974,-2671.53,0.00013972,2]
[361213598,1747345847989,-151.0,0.00013972,2]
[361213599,1747345848003,-151.0,0.00013972,2]
[361213600,1747345848018,-156.636998,0.00013972,2]
[361213601,1747345848032,-151.0,0.00013972,2]
[361213602,1747345848046,-156.636998,0.00013972,2]
[361213603,1747345848060,-156.636998,0.00013972,2]
[361213604,1747345848074,-156.636998,0.00013972,2]
[361213605,1747345848088,-450.0,0.00013972,2]